bitfinex/quotes_SOLUSD_20260222
["timestamp","ask_amount","ask_price","bid_price","bid_amount"]
[1771775210895,0.7086405,83.675,83.64,1.30476899]
[1771775211097,0.70793113,83.669,83.631,1.30476899]
[1771775211296,0.70770009,83.694,83.646,1.30476899]
[1771775211604,0.70770009,83.694,83.65,1.30476899]
[1771775213193,0.70724593,83.689,83.652,1.30476899]
[1771775213999,0.70724593,83.679,83.646,11.95514429]
[1771775215301,0.70680214,83.677,83.645,1.30476899]
[1771775216809,0.70658406,83.675,83.646,13.25991328]
[1771775216997,0.70658406,83.675,83.646,11.95514429]
[1771775217197,0.70658406,83.675,83.647,1.30476899]
[1771775219912,0.70594474,83.669,83.636,11.95657372]
[1771775220122,0.70594474,83.669,83.637,1.30476899]
[1771775220911,0.70573651,83.659,83.63,1.30476899]
[1771775221114,3.07475693,83.65,83.624,11.95815058]
[1771775221412,0.70553067,83.649,83.624,11.95815058]
[1771775222610,0.7053272,83.647,83.62,53.8]
[1771775223014,0.7053272,83.647,83.616,1.30476899]
[1771775223211,11.95485845,83.648,83.611,1.30476899]
[1771775223212,0.70512606,83.639,83.611,1.30476899]
[1771775223515,0.70512606,83.639,83.606,1.30476899]
[1771775224398,0.70492723,83.637,83.606,1.30476899]
[1771775224798,0.70492723,83.629,83.606,1.30476899]
[1771775225003,0.70492723,83.629,83.605,11.96095887]
[1771775225004,0.70492723,83.629,83.6,1.30476899]
[1771775225405,0.70473069,83.619,83.59,62.00462625]
[1771775225630,0.70473069,83.619,83.588,1.30476899]
[1771775225920,3.07475693,83.62,83.577,53.8]
[1771775225921,0.70473069,83.629,83.59,1.30476899]
[1771775228397,0.70396684,83.627,83.592,1.3146091]
[1771775228598,0.70396684,83.619,83.592,1.3146091]
[1771775229110,12.66135584,83.629,83.592,1.3146091]
[1771775229618,0.70378132,83.628,83.592,1.3146091]
[1771775231314,0.70341667,83.626,83.594,1.3146091]
[1771775232520,11.95814648,83.625,83.596,1.3146091]
[1771775233021,0.70306034,83.639,83.596,1.3146091]
[1771775233613,0.70306034,83.619,83.596,1.3146091]
[1771775234004,0.70288524,83.629,83.596,1.3146091]
[1771775234619,0.70271215,83.627,83.598,1.33620373]
[1771775237322,12.66020821,83.626,83.6,1.33620373]
[1771775237704,0.70220472,83.625,83.6,1.33620373]
[1771775241202,0.70155494,83.625,83.601,13.29778313]
[1771775241420,0.70155494,83.625,83.602,1.33620373]
[1771775244734,12.65977775,83.625,83.602,1.33620373]
[1771775246235,11.95822281,83.625,83.603,11.96129325]
[1771775246430,11.95822281,83.625,83.604,1.33620373]
[1771775249226,0.70034207,83.626,83.604,1.33620373]
[1771775251642,0.70005597,83.633,83.606,1.33620373]
[1771775252137,0.69991537,83.629,83.606,1.33620373]
[1771775254630,0.69963902,83.637,83.608,1.33620373]
[1771775256431,29.88692146,83.649,83.61,1.33620373]
[1771775256432,0.69936897,83.635,83.61,1.33620373]
[1771775258636,0.69897542,83.633,83.605,1.37582052]
[1771775260434,0.69872053,83.629,83.605,1.37582052]
[1771775261334,12.65631279,83.628,83.605,1.37582052]
[1771775261527,0.69859528,83.627,83.605,1.37582052]
[1771775262548,11.95514429,83.646,83.607,1.37582052]
[1771775262729,0.69847147,83.645,83.607,1.37582052]
[1771775266249,0.69847147,83.645,83.582,5.36086188]
[1771775266250,0.69799027,83.629,83.6,1.37582052]
[1771775266447,0.69799027,83.629,83.602,1.37582052]
[1771775268451,0.69775788,83.627,83.602,1.37582052]
[1771775269242,3.07762691,83.61,83.569,1.40281811]
[1771775269963,3.07762691,83.62,83.569,1.40281811]
[1771775270257,41.85651586,83.619,83.57,11.96601651]
[1771775270554,41.85651586,83.619,83.571,1.40281811]
[1771775272644,41.85651586,83.619,83.572,11.96573014]
[1771775272935,11.95900453,83.619,83.573,1.40281811]
[1771775273144,11.95900453,83.619,83.572,41.88005551]
[1771775273145,3.07762691,83.65,83.59,1.40281811]
[1771775273360,3.07762691,83.64,83.59,1.40281811]
[1771775273547,3.07762691,83.63,83.59,1.40281811]
[1771775274541,11.95757452,83.629,83.592,1.40281811]
[1771775276657,0.28432314,83.656,83.594,1.40281811]
[1771775276843,3.07762691,83.65,83.594,1.40281811]
[1771775278551,41.84150437,83.649,83.596,1.40281811]
[1771775278752,11.95471553,83.649,83.6,1.40281811]
[1771775280746,11.95471553,83.649,83.588,3.69383402]
[1771775280747,41.83650294,83.659,83.602,1.40281811]
[1771775280946,3.07762691,83.65,83.602,1.40281811]
[1771775281363,41.83650294,83.659,83.586,1.40281811]
[1771775281364,3.07762691,83.63,83.586,1.40281811]
[1771775283371,11.95757452,83.629,83.588,1.40281811]
[1771775285168,41.85151083,83.629,83.588,1.40281811]
[1771775285466,59.76643278,83.659,83.588,1.40281811]
[1771775285467,3.07762691,83.62,83.588,1.40281811]
[1771775286260,3.07762691,83.63,83.588,1.40281811]
[1771775287368,41.85151083,83.629,83.59,1.40281811]
[1771775288278,3.07762691,83.62,83.59,1.40281811]
[1771775291053,11.95900453,83.619,83.59,1.40281811]
[1771775291254,3.07828617,83.61,83.576,1.40281811]
[1771775291572,3.07828617,83.61,83.577,1.40281811]
[1771775291774,3.07828617,83.61,83.575,1.40281811]
[1771775294567,41.86152208,83.609,83.575,1.40281811]
[1771775294956,3.07828617,83.6,83.575,1.40281811]
[1771775296874,11.96186557,83.599,83.575,1.40281811]
[1771775297271,11.96186557,83.599,83.567,1.40281811]
[1771775299974,11.96186557,83.599,83.569,1.40281811]
[1771775300578,41.8665295,83.599,83.569,1.40281811]
[1771775305666,3.07828617,83.59,83.569,1.40281811]
[1771775306475,11.9632966,83.589,83.569,1.40281811]
[1771775307566,41.8665295,83.599,83.559,1.40281811]
[1771775312792,41.8665295,83.599,83.561,1.40281811]
[1771775314192,3.07828617,83.59,83.561,1.40281811]
[1771775315192,41.8665295,83.599,83.563,1.40281811]
[1771775317691,11.96186557,83.599,83.565,1.40281811]
[1771775320104,41.86168252,83.609,83.567,1.40281811]
[1771775320602,3.07828617,83.6,83.567,1.40281811]
[1771775321602,11.96186557,83.599,83.568,11.96630289]
[1771775321804,11.96186557,83.599,83.569,1.40281811]
[1771775324785,11.96186557,83.599,83.571,1.40281811]
[1771775332490,11.96186557,83.599,83.573,1.40281811]
[1771775342610,11.96186557,83.599,83.575,1.40281811]
[1771775353406,3.08004341,83.6,83.575,1.40281811]
[1771775356106,11.96186557,83.599,83.575,1.40281811]
[1771775357018,11.96186557,83.599,83.55,0.2]
[1771775357019,11.96186557,83.599,83.57,1.40281811]
[1771775361023,3.08004341,83.58,83.557,1.40281811]
[1771775361206,3.08004341,83.59,83.557,1.40281811]
[1771775363233,11.9632966,83.589,83.559,1.40281811]
[1771775364928,11.9632966,83.589,83.56,11.96744853]
[1771775365111,11.9632966,83.589,83.561,1.40281811]
[1771775371923,3.08004341,83.6,83.563,1.40281811]
[1771775373615,11.9632966,83.589,83.563,1.40281811]
[1771775377530,3.08004341,83.6,83.563,1.40281811]
[1771775378134,3.08004341,83.59,83.563,1.40281811]
[1771775379037,3.08004341,83.57,83.55,0.2]
[1771775379229,3.08004341,83.56,83.55,0.2]
[1771775380819,3.08004341,83.57,83.55,0.2]
[1771775381022,3.08004341,83.56,83.55,0.2]
[1771775382920,0.28432314,83.593,83.55,1.60281811]
[1771775383120,3.08004341,83.57,83.55,1.60281811]
[1771775384836,11.9661597,83.569,83.55,1.60281811]
[1771775389039,11.9661597,83.569,83.55,0.2]
[1771775391343,3.08004341,83.56,83.55,0.2]
[1771775392142,11.96759176,83.559,83.55,0.2]
[1771775393251,11.9661597,83.569,83.55,0.2]
[1771775401746,102.7,83.592,83.55,1.60281811]
[1771775401953,0.28432314,83.583,83.55,1.60281811]
[1771775402454,29.91037694,83.584,83.55,1.60281811]
[1771775402751,3.08004341,83.58,83.55,1.60281811]
[1771775402954,11.96472798,83.579,83.551,1.40281811]
[1771775406857,0.28432314,83.583,83.551,1.40281811]
[1771775409962,3.08004341,83.58,83.551,1.40281811]
[1771775412166,11.96472798,83.579,83.551,1.40281811]
[1771775423155,0.28432314,83.583,83.55,0.2]
[1771775423156,11.96418622,83.583,83.553,1.40281811]
[1771775424460,11.96258104,83.594,83.555,1.40281811]
[1771775425565,11.96258104,83.594,83.554,41.88907772]
[1771775425566,11.96186557,83.599,83.557,1.40281811]
[1771775426874,3.0816627,83.59,83.557,1.40281811]
[1771775428970,11.9632966,83.589,83.559,1.40281811]
[1771775431466,3.0816627,83.6,83.561,1.40281811]
[1771775432574,11.96186557,83.599,83.563,1.40281811]
[1771775437585,11.96186557,83.599,83.565,1.40281811]
[1771775439765,8.22818423,83.613,83.569,1.40281811]
[1771775440972,8.22818423,83.613,83.568,0.28432314]
[1771775440973,8.22818423,83.613,83.571,1.40281811]
[1771775443472,8.22818423,83.613,83.573,1.40281811]
[1771775444468,8.22818423,83.613,83.575,1.40281811]
[1771775445980,1.31681579,83.626,83.576,0.02251764]
[1771775446983,1.36893063,83.631,83.581,0.02244447]
[1771775448978,1.36893063,83.631,83.586,0.02230065]
[1771775449680,1.36893063,83.629,83.586,0.02230065]
[1771775450685,1.36893063,83.627,83.586,0.02230065]
[1771775452691,1.36893063,83.625,83.586,0.02230065]
[1771775455790,1.36893063,83.623,83.586,0.02230065]
[1771775456787,1.36893063,83.621,83.586,0.02230065]
[1771775459676,11.95886151,83.62,83.586,0.02230065]
[1771775459877,1.36893063,83.619,83.586,0.02230065]
[1771775460494,1.36893063,83.619,83.58,11.96458482]
[1771775460694,1.36893063,83.609,83.553,11.96845116]
[1771775460895,1.36893063,83.609,83.556,29.91977464]
[1771775461277,1.36893063,83.599,83.553,11.96845116]
[1771775462690,1.36893063,83.597,83.553,11.96845116]
[1771775463587,11.96229484,83.596,83.553,11.96845116]
[1771775463795,1.36893063,83.595,83.553,11.96845116]
[1771775465813,1.36893063,83.589,83.55,0.2]
[1771775466200,1.36893063,83.589,83.55,12.16874424]
[1771775468400,1.36893063,83.596,83.55,42.09094651]
[1771775468692,1.36893063,83.596,83.553,3.69383402]
[1771775473109,1.36893063,83.596,83.554,41.88907772]
[1771775476596,1.36893063,83.609,83.555,0.28432314]
[1771775476798,1.36893063,83.609,83.558,0.28432314]
[1771775478194,1.36893063,83.608,83.562,3.69383402]
[1771775481718,1.36893063,83.608,83.563,41.88456612]
[1771775486523,1.36893063,83.608,83.563,29.91754723]
[1771775493323,11.95643076,83.637,83.587,1.28586298]
[1771775493523,41.84750767,83.637,83.587,1.28586298]
[1771775493915,0.28432314,83.636,83.587,1.28586298]
[1771775495223,12.24118279,83.634,83.588,11.96343972]
[1771775495523,1.23081212,83.631,83.589,1.28233786]
[1771775497732,1.23081212,83.629,83.591,1.27889325]
[1771775500114,1.23081212,83.629,83.593,1.27343705]
[1771775502130,1.23081212,83.629,83.601,11.9615794]
[1771775505638,1.23081212,83.629,83.601,13.2229695]
[1771775506927,1.23081212,83.629,83.603,11.96129325]
[1771775507317,1.23081212,83.629,83.603,13.21884972]
[1771775507934,1.23081212,83.629,83.61,3.07747286]
[1771775508934,1.23081212,83.629,83.61,4.33314548]
[1771775509338,1.23081212,83.629,83.61,16.29342226]
[1771775510228,1.23081212,83.629,83.61,15.03774964]
[1771775512428,1.25319479,83.627,83.61,3.07747286]
[1771775512633,1.25319479,83.627,83.605,11.961004]
[1771775513727,1.25319479,83.627,83.601,11.9615794]
[1771775517443,1.25319479,83.609,83.575,1.29522688]
[1771775517634,1.25319479,83.609,83.571,1.29522688]
[1771775522252,1.25319479,83.607,83.58,3.07747286]
[1771775524947,1.25319479,83.605,83.58,2.65747286]
[1771775525837,3.07747286,83.6,83.56,13.26264941]
[1771775526042,1.25319479,83.599,83.564,13.26210256]
[1771775526241,1.25319479,83.599,83.565,1.29522688]
[1771775526847,11.96200866,83.598,83.57,3.07747286]
[1771775527042,1.25319479,83.597,83.57,3.07747286]
[1771775527239,1.25319479,83.591,83.56,4.37269974]
[1771775527651,1.25319479,83.591,83.561,1.29522688]
[1771775528042,1.25319479,83.591,83.57,3.07747286]
[1771775528246,1.25319479,83.591,83.571,1.24507741]
[1771775543678,1.25319479,83.591,83.567,1.21261707]
[1771775545081,1.18842385,83.589,83.567,1.21261707]
[1771775547182,1.18842385,83.589,83.568,13.17891996]
[1771775547575,1.18842385,83.589,83.569,1.21261707]
[1771775548174,1.18842385,83.589,83.57,11.96601651]
[1771775548400,1.18842385,83.589,83.571,1.21261707]
[1771775550763,1.18842385,83.604,83.58,3.08012492]
[1771775550982,1.18842385,83.6,83.58,3.08012492]
[1771775551280,1.18842385,83.6,83.574,1.21261707]
[1771775552568,1.18842385,83.598,83.574,1.21261707]
[1771775554878,1.18842385,83.598,83.58,3.08012492]
[1771775555273,1.18842385,83.598,83.575,11.96530062]
[1771775555474,1.18842385,83.598,83.574,1.21261707]
[1771775559487,1.18842385,83.598,83.576,1.25709506]
[1771775575302,13.13937373,83.597,83.576,1.25709506]
[1771775575486,1.17722198,83.596,83.576,1.25709506]
[1771775580810,1.17722198,83.596,83.535,3.69383402]
[1771775580811,59.76890559,83.656,83.581,1.25709506]
[1771775581116,1.17722198,83.639,83.591,1.25709506]
[1771775581289,1.17722198,83.637,83.591,1.25709506]
[1771775581495,1.17722198,83.627,83.591,1.25709506]
[1771775581912,1.17722198,83.621,83.591,1.25709506]
[1771775582714,1.17722198,83.62,83.593,1.25709506]
[1771775584913,29.89208744,83.635,83.577,29.91253574]
[1771775584914,1.17722198,83.65,83.611,1.25709506]
[1771775585118,1.17722198,83.649,83.611,1.25709506]
[1771775585305,1.17722198,83.641,83.611,1.25709506]
[1771775587522,1.17722198,83.641,83.613,1.25709506]
[1771775591117,1.17722198,83.641,83.615,1.20101538]
[1771775592819,1.17722198,83.641,83.617,1.20101538]
[1771775594412,1.17751482,83.639,83.617,1.20101538]
[1771775602035,1.17751482,83.639,83.577,59.82472119]
[1771775602036,0.28432314,83.622,83.604,1.18035489]
[1771775602218,1.17751482,83.621,83.592,1.18035489]
[1771775602531,1.17751482,83.619,83.592,1.18035489]
[1771775603734,1.17751482,83.619,83.594,1.18035489]
[1771775604918,1.17751482,83.619,83.596,1.18035489]
[1771775607419,1.17751482,83.617,83.596,1.18035489]
[1771775609643,1.46183796,83.621,83.598,1.18035489]
[1771775615841,1.17751482,83.619,83.598,1.18035489]
[1771775619652,1.21700678,83.611,83.585,1.21689074]
[1771775623135,11.96029183,83.61,83.585,1.21689074]
[1771775625047,11.96029183,83.61,83.591,1.21689074]
[1771775626045,1.21700678,83.61,83.585,1.21689074]
[1771775626864,1.24508362,83.609,83.585,1.21689074]
[1771775627049,1.24508362,83.607,83.585,1.21689074]
[1771775631782,1.24508362,83.607,83.584,11.96396304]
[1771775631783,1.24508362,83.601,83.575,1.20638829]
[1771775634290,1.24508362,83.599,83.575,1.20638829]
[1771775635678,11.96172248,83.6,83.576,1.20638829]
[1771775635883,13.2068061,83.6,83.576,1.20638829]
[1771775638301,1.24508362,83.597,83.576,1.20638829]
[1771775643494,1.24508362,83.6,83.577,11.96501429]
[1771775643697,1.24508362,83.6,83.578,1.20638829]
[1771775644409,1.24508362,83.601,83.578,1.20638829]
[1771775644712,1.24508362,83.6,83.578,1.20638829]
[1771775644888,11.9615794,83.601,83.578,1.20638829]
[1771775646021,11.9615794,83.601,83.581,1.20638829]
[1771775663417,3.07953689,83.62,83.545,3.69383402]
[1771775663418,11.96012689,83.612,83.583,1.20576809]
[1771775663737,47.78940335,83.701,83.591,1.20576809]
[1771775663738,11.95771751,83.628,83.591,1.20576809]
[1771775664128,0.28432314,83.627,83.591,1.20576809]
[1771775664639,11.95771751,83.628,83.591,1.20576809]
[1771775664821,0.28432314,83.627,83.591,1.20576809]
[1771775665430,11.95800349,83.626,83.592,11.96286726]
[1771775665635,0.13931438,83.62,83.593,1.20576809]
[1771775668941,0.13931438,83.62,83.595,1.20576809]
[1771775671538,0.13931438,83.62,83.597,1.20576809]
[1771775681443,0.14216157,83.625,83.563,1.2513646]
[1771775681444,0.28432314,83.609,83.563,1.2513646]
[1771775681634,0.13355623,83.599,83.563,1.2513646]
[1771775682643,0.13320254,83.608,83.571,1.2513646]
[1771775686649,0.13182792,83.606,83.573,1.2513646]
[1771775688951,0.13116406,83.604,83.575,1.2513646]
[1771775695365,0.28432314,83.603,83.577,1.2513646]
[1771775696247,12.08637436,83.628,83.591,1.2513646]
[1771775696460,0.12865685,83.633,83.601,1.2513646]
[1771775696660,0.41297999,83.633,83.601,1.2513646]
[1771775696863,0.12865685,83.638,83.61,3.07953689]
[1771775697161,0.12865685,83.638,83.611,1.2513646]
[1771775697948,0.12865685,83.638,83.613,1.2513646]
[1771775700558,0.12865685,83.638,83.615,1.2513646]
[1771775700753,0.12865685,83.638,83.607,11.96071806]
[1771775700955,0.28432314,83.641,83.607,11.96071806]
[1771775700956,0.1274875,83.629,83.607,11.96071806]
[1771775702349,0.1274875,83.629,83.608,1.2513646]
[1771775703652,0.28432314,83.636,83.611,1.2513646]
[1771775704563,0.4106941,83.636,83.611,1.2513646]
[1771775706064,0.28432314,83.634,83.611,1.2513646]
[1771775707753,0.12556677,83.642,83.613,1.2513646]
[1771775708455,0.12556677,83.642,83.615,1.22449671]
[1771775709966,0.12478997,83.64,83.615,1.22449671]
[1771775714682,0.12331486,83.639,83.615,1.22449671]
[1771775714885,0.12331486,83.639,83.601,1.22506224]
[1771775716269,0.12331486,83.639,83.603,1.22506224]
[1771775719182,0.12331486,83.639,83.605,1.22506224]
[1771775720375,0.12331486,83.639,83.606,11.96086405]
[1771775720575,0.12331486,83.639,83.607,1.22506224]
[1771775723289,0.12331486,83.639,83.609,1.22506224]
[1771775730297,0.11984641,83.638,83.585,1.22506224]
[1771775730601,0.11984641,83.61,83.585,1.22506224]
[1771775732901,0.11945621,83.615,83.585,1.22506224]
[1771775733286,0.28432314,83.616,83.585,1.22506224]
[1771775733909,0.28432314,83.616,83.587,1.22506224]
[1771775735594,0.4032107,83.614,83.588,11.96343972]
[1771775735906,0.11888756,83.613,83.587,1.22506224]
[1771775737204,0.28432314,83.614,83.587,1.22506224]
[1771775737592,0.28432314,83.614,83.591,1.22506224]
[1771775739910,0.11798253,83.613,83.591,1.22506224]
[1771775744012,0.28432314,83.612,83.591,1.22506224]
[1771775744213,0.40161836,83.612,83.591,1.22506224]
[1771775746718,3.07750952,83.62,83.591,1.22506224]
[1771775746719,0.11680019,83.609,83.591,1.22506224]
[1771775747018,0.28432314,83.61,83.591,1.22506224]
[1771775749418,0.28432314,83.608,83.591,1.22506224]
[1771775753507,29.89912191,83.615,83.564,29.91687985]
[1771775753508,1.5418372,83.606,83.57,3.07750952]
[1771775754002,1.5418372,83.606,83.58,3.07750952]
[1771775754404,11.96100711,83.605,83.58,3.07750952]
[1771775754609,1.5418372,83.604,83.58,3.07750952]
[1771775755417,1.5418372,83.604,83.581,1.2100697]
[1771775756019,0.28432314,83.609,83.581,1.2100697]
[1771775756625,13.21709069,83.615,83.582,1.2100697]
[1771775757027,0.28432314,83.614,83.582,1.2100697]
[1771775759128,0.28432314,83.612,83.582,1.2100697]
[1771775759828,1.5418372,83.612,83.582,1.2100697]
[1771775762028,1.5418372,83.61,83.582,1.2100697]
[1771775762523,1.5418372,83.61,83.583,11.96415539]
[1771775762727,1.5418372,83.61,83.584,1.2100697]
[1771775765333,0.28432314,83.608,83.584,1.2100697]
[1771775765927,0.28432314,83.606,83.584,1.2100697]
[1771775766233,1.5418372,83.606,83.584,1.2100697]
[1771775774137,0.28432314,83.608,83.586,1.20698694]
[1771775774823,0.28432314,83.606,83.586,1.20698694]
[1771775777750,1.21912596,83.615,83.588,1.15363055]
[1771775778044,0.28432314,83.614,83.588,1.15363055]
[1771775779043,0.28432314,83.613,83.59,1.15363055]
[1771775780324,0.28432314,83.613,83.589,11.9632966]
[1771775780325,0.14216157,83.612,83.591,11.96301037]
[1771775780541,0.28432314,83.612,83.592,1.15363055]
[1771775782445,0.28432314,83.611,83.592,1.15363055]
[1771775782853,0.28432314,83.616,83.594,1.15363055]
[1771775783029,1.5034491,83.616,83.594,1.15363055]
[1771775792453,3.69383402,83.636,83.56,3.07909283]
[1771775792454,0.28432314,83.626,83.601,1.15363055]
[1771775792653,0.28432314,83.626,83.611,1.15363055]
[1771775801982,0.28432314,83.631,83.611,1.15363055]
[1771775802770,1.46566726,83.631,83.611,1.15363055]
[1771775803569,1.46566726,83.631,83.612,1.25579899]
[1771775805693,1.46566726,83.631,83.611,11.96013904]
[1771775815592,1.46566726,83.631,83.611,13.21593803]
[1771775815892,1.46566726,83.631,83.611,11.96013904]
[1771775816084,1.46566726,83.631,83.612,1.25579899]
[1771775816789,1.18134412,83.647,83.614,1.25579899]
[1771775816982,1.18134412,83.641,83.621,1.25579899]
[1771775818595,1.18134412,83.639,83.621,1.25579899]
[1771775822989,1.18134412,83.638,83.612,1.25579899]
[1771775823386,1.18134412,83.638,83.621,1.25579899]
[1771775824899,1.18134412,83.638,83.62,3.07909283]
[1771775825102,1.18134412,83.638,83.62,4.33489182]
[1771775828095,1.18134412,83.638,83.621,1.25579899]
[1771775831688,0.28432314,83.635,83.601,11.9615794]
[1771775831995,1.24785429,83.63,83.61,3.07909283]
[1771775832398,1.24785429,83.628,83.61,3.07909283]
[1771775832707,1.24785429,83.617,83.58,3.07909283]
[1771775832886,11.95757452,83.629,83.575,1.21763549]
[1771775832887,1.24785429,83.601,83.575,1.21763549]
[1771775833594,1.24785429,83.601,83.574,11.96544379]
[1771775833891,1.24785429,83.591,83.575,1.21763549]
[1771775834096,1.24785429,83.591,83.571,1.21763549]
[1771775838810,1.25109487,83.589,83.571,1.21763549]
[1771775839111,1.25109487,83.589,83.567,1.15068358]
[1771775840493,1.25109487,83.587,83.567,1.15068358]
[1771775843518,1.25109487,83.591,83.567,1.15068358]
[1771775845818,29.90252969,83.605,83.567,1.15068358]
[1771775845819,1.25109487,83.589,83.567,1.15068358]
[1771775847520,1.25109487,83.589,83.57,3.08052634]
[1771775847720,1.25109487,83.589,83.571,1.15068358]
[1771775848415,1.53541801,83.597,83.572,1.15068358]
[1771775848998,1.53541801,83.597,83.58,3.08052634]
[1771775849199,1.53541801,83.597,83.581,1.15068358]
[1771775851111,0.28432314,83.595,83.581,1.15068358]
[1771775851617,1.53541801,83.595,83.581,1.15068358]
[1771775854928,0.28432314,83.593,83.581,1.15068358]
[1771775860963,1.49339491,83.593,83.581,1.15068358]
[1771775862532,0.28432314,83.591,83.571,1.1592532]
[1771775864149,1.20907177,83.589,83.571,1.1592532]
[1771775864841,11.96315348,83.59,83.571,1.1592532]
[1771775869853,0.28432314,83.592,83.571,1.1592532]
[1771775872853,0.28432314,83.594,83.571,1.1592532]
[1771775874736,1.20907177,83.597,83.571,1.1592532]
[1771775874940,1.20907177,83.601,83.573,1.1592532]
[1771775876554,1.20907177,83.601,83.574,11.96544379]
[1771775876756,11.96156884,83.602,83.581,1.1592532]
[1771775877069,0.28432314,83.601,83.581,1.1592532]
[1771775877771,1.49339491,83.601,83.581,1.1592532]
[1771775880562,1.49339491,83.601,83.56,3.08052634]
[1771775880563,1.20907177,83.591,83.571,1.1592532]
[1771775880967,11.96172248,83.6,83.534,1.27353631]
[1771775880968,0.28432314,83.579,83.534,1.27353631]
[1771775881142,0.28432314,83.569,83.537,1.27353631]
[1771775881549,0.14216157,83.569,83.537,1.27353631]
[1771775881853,0.14216157,83.569,83.541,1.27353631]
[1771775882568,12.10832127,83.569,83.541,1.27353631]
[1771775883273,0.14216157,83.568,83.541,1.27353631]
[1771775883951,0.14216157,83.568,83.539,1.27353631]
[1771775888871,0.28432314,83.568,83.543,1.27353631]
[1771775890554,3.08052634,83.56,83.533,1.27353631]
[1771775891160,0.28432314,83.558,83.54,1.47353631]
[1771775892779,0.28432314,83.556,83.54,1.47353631]
[1771775893072,0.28432314,83.548,83.53,0.2]
[1771775893472,1.53606149,83.548,83.53,0.2]
[1771775894582,0.28432314,83.551,83.53,0.2]
[1771775894776,13.21239975,83.55,83.53,0.2]
[1771775895081,13.21239975,83.55,83.531,1.17584602]
[1771775896182,0.28432314,83.548,83.531,1.17584602]
[1771775896681,1.52784199,83.548,83.531,1.17584602]
[1771775897475,11.96931068,83.547,83.531,1.17584602]
[1771775897680,0.28432314,83.546,83.531,1.17584602]
[1771775897880,1.52784199,83.546,83.531,1.17584602]
[1771775898982,0.28432314,83.544,83.531,1.17584602]
[1771775899280,11.96959722,83.545,83.51,3.28052634]
[1771775899281,0.28432314,83.534,83.511,1.17584602]
[1771775900371,0.28432314,83.532,83.511,1.17584602]
[1771775900576,0.14216157,83.532,83.511,1.17584602]
[1771775902484,0.28432314,83.532,83.511,1.17584602]
[1771775905089,11.97160335,83.531,83.511,1.17584602]
[1771775906595,0.28432314,83.534,83.511,1.17584602]
[1771775907793,0.28432314,83.556,83.521,1.17584602]
[1771775907996,0.28432314,83.556,83.531,1.17584602]
[1771775908183,0.28432314,83.556,83.541,1.17584602]
[1771775908377,11.96787821,83.557,83.541,1.17584602]
[1771775908739,41.8840649,83.564,83.52,3.08052634]
[1771775908887,0.14216157,83.556,83.53,3.08052634]
[1771775909086,0.14216157,83.555,83.513,41.90964281]
[1771775909287,0.28432314,83.552,83.52,3.08346588]
[1771775909487,0.28432314,83.552,83.513,41.90964281]
[1771775909795,0.28432314,83.554,83.52,3.08346588]
[1771775910099,0.28432314,83.559,83.53,3.08346588]
[1771775910884,0.28432314,83.557,83.531,1.17584602]
[1771775914704,1.24351885,83.558,83.531,1.17584602]
[1771775916602,0.14216157,83.557,83.531,1.17584602]
[1771775916806,12.25220135,83.557,83.531,1.17584602]
[1771775920195,13.51326632,83.557,83.531,1.17584602]
[1771775921908,13.51326632,83.557,83.533,1.19870035]
[1771775922105,12.25220135,83.557,83.533,1.19870035]
[1771775924910,3.69383402,83.579,83.51,0.2]
[1771775924911,1.26106497,83.574,83.541,1.19870035]
[1771775925208,1.26106497,83.574,83.551,1.19870035]
[1771775927916,1.26106497,83.572,83.551,1.19870035]
[1771775930101,11.96587332,83.571,83.551,1.19870035]
[1771775930302,0.28432314,83.569,83.545,1.19870035]
[1771775930497,1.26106497,83.564,83.539,1.19870035]
[1771775931015,1.26106497,83.564,83.482,5.36086188]
[1771775931016,0.28432314,83.559,83.499,1.19870035]
[1771775931320,41.88055664,83.571,83.51,1.39870035]
[1771775931321,1.26106497,83.529,83.51,1.39870035]
[1771775931512,1.54538811,83.519,83.496,1.19870035]
[1771775931705,1.38328369,83.519,83.49,0.2]
[1771775931905,0.28432314,83.517,83.491,1.19870035]
[1771775933520,0.28432314,83.526,83.493,1.19870035]
[1771775933817,1.26106497,83.525,83.493,1.19870035]
[1771775935022,1.26106497,83.525,83.495,1.19870035]
[1771775935912,1.26106497,83.525,83.497,1.19870035]
[1771775938026,13.51799478,83.524,83.497,1.19870035]
[1771775938222,1.26106497,83.521,83.497,1.19870035]
[1771775939225,1.26106497,83.515,83.497,1.19870035]
[1771775939607,1.54538811,83.508,83.49,1.39870035]
[1771775939813,0.28432314,83.507,83.49,1.39870035]
[1771775940121,0.28432314,83.518,83.491,1.19870035]
[1771775940624,0.28432314,83.518,83.49,0.2]
[1771775940625,1.54538811,83.518,83.49,0.2]
[1771775940820,1.26106497,83.505,83.49,1e-08]
[1771775941021,3.08346588,83.52,83.49,1.19870036]
[1771775941022,0.14216157,83.509,83.49,1.19870036]
[1771775941326,1.26106497,83.517,83.5,1.19870035]
[1771775941830,1.26106497,83.517,83.492,1.19870035]
[1771775942015,1.26106497,83.522,83.494,1.19870035]
[1771775943910,11.97120838,83.534,83.501,1.19870035]
[1771775944107,3.08346588,83.56,83.521,1.19870035]
[1771775944323,0.28432314,83.559,83.521,1.19870035]
[1771775944721,0.14216157,83.549,83.521,1.19870035]